[Event "Late-Titled-Tuesday-Blitz-May-07-2024"]
[Site "Chess.com"]
[Date "2024.05.07"]
[Round "2"]
[White "cristianserban1"]
[Black "Iball95"]
[Result "1-0"]
[WhiteElo "2633"]
[BlackElo "2887"]
[TimeControl "180+1"]
[EndTime "14:19:08 PDT"]
[Termination "cristianserban1 won on time"]

1. d4 {[%clk 0:03:00.9]} 1... d5 {[%clk 0:02:59.8]} 2. c4 {[%clk 0:03:01.3]}
2... e6 {[%clk 0:03:00.3]} 3. Nf3 {[%clk 0:03:01.6]} 3... Nf6 {[%clk 0:03:00.6]}
4. g3 {[%clk 0:03:01.9]} 4... c5 {[%clk 0:03:01]} 5. cxd5 {[%clk 0:03:01.7]}
5... cxd4 {[%clk 0:03:01.3]} 6. Qxd4 {[%clk 0:02:55.4]} 6... exd5 {[%clk
0:03:00.8]} 7. Bg5 {[%clk 0:02:50.9]} 7... Be7 {[%clk 0:03:00.1]} 8. Bg2 {[%clk
0:02:46.7]} 8... Nc6 {[%clk 0:03:00.8]} 9. Qa4 {[%clk 0:02:22.4]} 9... Qb6
{[%clk 0:02:57.4]} 10. Qb3 {[%clk 0:01:51.4]} 10... Qxb3 {[%clk 0:02:37.4]} 11.
axb3 {[%clk 0:01:52.3]} 11... h6 {[%clk 0:02:38]} 12. Bd2 {[%clk 0:01:38.2]}
12... O-O {[%clk 0:02:35.1]} 13. O-O {[%clk 0:01:38.5]} 13... Ne4 {[%clk
0:02:34.4]} 14. Rd1 {[%clk 0:01:33.6]} 14... Rd8 {[%clk 0:02:33.3]} 15. Be1
{[%clk 0:01:22.1]} 15... Bf6 {[%clk 0:02:27.7]} 16. Nc3 {[%clk 0:01:20.3]} 16...
Be6 {[%clk 0:02:24.2]} 17. e3 {[%clk 0:01:13.2]} 17... Rac8 {[%clk 0:02:19.1]}
18. Nd4 {[%clk 0:01:01.3]} 18... Nxd4 {[%clk 0:01:54.7]} 19. exd4 {[%clk
0:01:02.2]} 19... Nxc3 {[%clk 0:01:27.3]} 20. bxc3 {[%clk 0:01:03.1]} 20... a6
{[%clk 0:01:27.9]} 21. Ra5 {[%clk 0:00:44.1]} 21... Rd7 {[%clk 0:01:24.8]} 22.
Bd2 {[%clk 0:00:39.3]} 22... g5 {[%clk 0:01:24.3]} 23. f4 {[%clk 0:00:38]} 23...
Bd8 {[%clk 0:01:15.6]} 24. Raa1 {[%clk 0:00:33.3]} 24... Bf5 {[%clk 0:01:03]}
25. Re1 {[%clk 0:00:31.2]} 25... Kf8 {[%clk 0:00:52.8]} 26. Re5 {[%clk
0:00:24.4]} 26... Bc2 {[%clk 0:00:52.9]} 27. Rxd5 {[%clk 0:00:20.6]} 27... Rdc7
{[%clk 0:00:46.4]} 28. b4 {[%clk 0:00:20.7]} 28... Bb3 {[%clk 0:00:40.5]} 29.
Rc5 {[%clk 0:00:20.7]} 29... Be7 {[%clk 0:00:39.3]} 30. Rxc7 {[%clk 0:00:13.3]}
30... Rxc7 {[%clk 0:00:40.2]} 31. fxg5 {[%clk 0:00:12.8]} 31... hxg5 {[%clk
0:00:40.3]} 32. Kf2 {[%clk 0:00:13.2]} 32... Kg7 {[%clk 0:00:39.8]} 33. Ra5
{[%clk 0:00:12.9]} 33... f6 {[%clk 0:00:39.4]} 34. h4 {[%clk 0:00:12.5]} 34...
Kh6 {[%clk 0:00:24]} 35. Be4 {[%clk 0:00:07.5]} 35... Bc4 {[%clk 0:00:20.6]} 36.
hxg5+ {[%clk 0:00:06.8]} 36... fxg5 {[%clk 0:00:21.5]} 37. g4 {[%clk 0:00:06.4]}
37... Bb5 {[%clk 0:00:18]} 38. Bf5 {[%clk 0:00:05.8]} 38... Bd6 {[%clk
0:00:16.4]} 39. Ra1 {[%clk 0:00:05.7]} 39... Re7 {[%clk 0:00:16.5]} 40. Rh1+
{[%clk 0:00:06.3]} 40... Kg7 {[%clk 0:00:16.4]} 41. Rh7+ {[%clk 0:00:06.8]}
41... Kg8 {[%clk 0:00:16.9]} 42. Rh5 {[%clk 0:00:05.1]} 42... Re2+ {[%clk
0:00:16.7]} 43. Kf3 {[%clk 0:00:05.1]} 43... Rxd2 {[%clk 0:00:17]} 44. Rxg5+
{[%clk 0:00:05.8]} 44... Kf7 {[%clk 0:00:17.3]} 45. Be4 {[%clk 0:00:06.3]} 45...
b6 {[%clk 0:00:12.9]} 46. Rf5+ {[%clk 0:00:06]} 46... Kg7 {[%clk 0:00:13.2]} 47.
Rg5+ {[%clk 0:00:05.2]} 47... Kf6 {[%clk 0:00:13.6]} 48. Rg6+ {[%clk 0:00:05.3]}
48... Ke7 {[%clk 0:00:13.3]} 49. Rg7+ {[%clk 0:00:05.8]} 49... Kf8 {[%clk
0:00:13.8]} 50. Rg6 {[%clk 0:00:06.1]} 50... Ke7 {[%clk 0:00:12]} 51. Rg7+
{[%clk 0:00:06.6]} 51... Kd8 {[%clk 0:00:10.5]} 52. Rg6 {[%clk 0:00:06.8]} 52...
Bc7 {[%clk 0:00:09.1]} 53. g5 {[%clk 0:00:06.6]} 53... Bd3 {[%clk 0:00:06.5]}
54. Ke3 {[%clk 0:00:05.4]} 54... Rg2 {[%clk 0:00:02.1]} 55. Kxd3 {[%clk
0:00:03.6]} 55... Rg3+ {[%clk 0:00:02.7]} 56. Kc4 {[%clk 0:00:03.7]} 56... b5+
{[%clk 0:00:03.1]} 57. Kb3 {[%clk 0:00:04.3]} 57... a5 {[%clk 0:00:01.8]} 58.
bxa5 {[%clk 0:00:04.2]} 58... Bxa5 {[%clk 0:00:02.7]} 59. Rg8+ {[%clk
0:00:03.8]} 59... Ke7 {[%clk 0:00:02.7]} 60. g6 {[%clk 0:00:04.3]} 60... Bxc3
{[%clk 0:00:01.9]} 61. Kc2 {[%clk 0:00:03.3]} 61... Bxd4 {[%clk 0:00:02.3]} 62.
Rb8 {[%clk 0:00:02.4]} 1-0

[Event "Late-Titled-Tuesday-Blitz-May-07-2024"]
[Site "Chess.com"]
[Date "2024.05.07"]
[Round "2"]
[White "PhileKhoob"]
[Black "IlanSchnaider"]
[Result "1-0"]
[WhiteElo "2332"]
[BlackElo "2717"]
[TimeControl "180+1"]
[EndTime "14:19:12 PDT"]
[Termination "PhileKhoob won by checkmate"]

1. e4 {[%clk 0:03:00.9]} 1... c5 {[%clk 0:02:52.8]} 2. Nf3 {[%clk 0:03:00.3]}
2... e6 {[%clk 0:02:51.9]} 3. Nc3 {[%clk 0:02:53.4]} 3... Nc6 {[%clk 0:02:50.5]}
4. d4 {[%clk 0:02:52.7]} 4... cxd4 {[%clk 0:02:50.5]} 5. Nxd4 {[%clk 0:02:53.3]}
5... a6 {[%clk 0:02:48.6]} 6. Be3 {[%clk 0:02:52.6]} 6... Nf6 {[%clk 0:02:46.1]}
7. Be2 {[%clk 0:02:52.3]} 7... Bb4 {[%clk 0:02:44.7]} 8. Nxc6 {[%clk 0:02:41.5]}
8... bxc6 {[%clk 0:02:43.9]} 9. O-O {[%clk 0:02:33.7]} 9... d5 {[%clk
0:02:39.6]} 10. exd5 {[%clk 0:02:30.9]} 10... cxd5 {[%clk 0:02:38.5]} 11. Na4
{[%clk 0:02:27.7]} 11... O-O {[%clk 0:02:36.7]} 12. c3 {[%clk 0:02:26.7]} 12...
Bd6 {[%clk 0:02:36.4]} 13. h3 {[%clk 0:02:24.3]} 13... Rb8 {[%clk 0:02:36.1]}
14. Qd2 {[%clk 0:02:23]} 14... Ne4 {[%clk 0:02:35.8]} 15. Qc2 {[%clk 0:02:21.7]}
15... Bd7 {[%clk 0:02:33]} 16. Bd3 {[%clk 0:02:14.3]} 16... Nf6 {[%clk
0:01:52.9]} 17. b4 {[%clk 0:02:10.6]} 17... Bb5 {[%clk 0:01:49.5]} 18. Nc5
{[%clk 0:02:09.4]} 18... Bxc5 {[%clk 0:01:44.8]} 19. Bxc5 {[%clk 0:02:09.2]}
19... Re8 {[%clk 0:01:44.7]} 20. a4 {[%clk 0:02:08.3]} 20... Bxd3 {[%clk
0:01:41.7]} 21. Qxd3 {[%clk 0:02:09.2]} 21... Ne4 {[%clk 0:01:38.5]} 22. Be3
{[%clk 0:01:53.3]} 22... Qf6 {[%clk 0:01:26.4]} 23. Bd4 {[%clk 0:01:48.2]} 23...
Qg5 {[%clk 0:01:18.2]} 24. f3 {[%clk 0:01:42.4]} 24... Ng3 {[%clk 0:01:13.1]}
25. Rfe1 {[%clk 0:01:36.8]} 25... Nf5 {[%clk 0:00:56.1]} 26. Be5 {[%clk
0:01:23.3]} 26... Rbc8 {[%clk 0:00:47.8]} 27. Qxa6 {[%clk 0:01:14.9]} 27... Rc4
{[%clk 0:00:25.1]} 28. Qb6 {[%clk 0:00:58.1]} 28... d4 {[%clk 0:00:19.2]} 29.
Qb5 {[%clk 0:00:47.5]} 29... Rec8 {[%clk 0:00:18.2]} 30. Bxd4 {[%clk 0:00:44.6]}
30... Qg6 {[%clk 0:00:12.6]} 31. Ra2 {[%clk 0:00:36.8]} 31... Nh4 {[%clk
0:00:08.7]} 32. Rf2 {[%clk 0:00:32.8]} 32... Qg3 {[%clk 0:00:07.5]} 33. Ref1
{[%clk 0:00:25.6]} 33... h6 {[%clk 0:00:06]} 34. a5 {[%clk 0:00:25.1]} 34...
R4c6 {[%clk 0:00:04.7]} 35. Qb7 {[%clk 0:00:20.4]} 35... R6c7 {[%clk 0:00:03.6]}
36. Qe4 {[%clk 0:00:19.1]} 36... Ng6 {[%clk 0:00:03.9]} 37. a6 {[%clk 0:00:18]}
37... Nf4 {[%clk 0:00:04.3]} 38. Kh1 {[%clk 0:00:15.9]} 38... Nd5 {[%clk
0:00:04.7]} 39. Be5 {[%clk 0:00:15.1]} 39... Qg5 {[%clk 0:00:02.3]} 40. Bxc7
{[%clk 0:00:14.8]} 40... Rxc7 {[%clk 0:00:03]} 41. b5 {[%clk 0:00:15.1]} 41...
Nxc3 {[%clk 0:00:02.7]} 42. Qb4 {[%clk 0:00:13.4]} 42... Nd5 {[%clk 0:00:02.8]}
43. Qb3 {[%clk 0:00:13.1]} 43... Ne3 {[%clk 0:00:02]} 44. b6 {[%clk 0:00:12]}
44... Nxf1 {[%clk 0:00:01.7]} 45. Rxf1 {[%clk 0:00:11.9]} 45... Rc1 {[%clk
0:00:01.3]} 46. Rg1 {[%clk 0:00:10.2]} 46... Rxg1+ {[%clk 0:00:01.4]} 47. Kxg1
{[%clk 0:00:11.1]} 47... Qc1+ {[%clk 0:00:01.9]} 48. Kf2 {[%clk 0:00:11.6]}
48... Qd2+ {[%clk 0:00:02.5]} 49. Kf1 {[%clk 0:00:10.3]} 49... Qc1+ {[%clk
0:00:02.1]} 50. Ke2 {[%clk 0:00:10.9]} 50... Qc5 {[%clk 0:00:02.3]} 51. b7
{[%clk 0:00:10.9]} 51... Qe5+ {[%clk 0:00:02.9]} 52. Kd3 {[%clk 0:00:11]} 52...
Qd6+ {[%clk 0:00:02.8]} 53. Kc3 {[%clk 0:00:11.4]} 53... Qc5+ {[%clk 0:00:01.8]}
54. Kb2 {[%clk 0:00:11.4]} 54... Qd4+ {[%clk 0:00:01.8]} 55. Ka3 {[%clk
0:00:11.8]} 55... Qc5+ {[%clk 0:00:01.8]} 56. Ka4 {[%clk 0:00:11.9]} 56... Qc6+
{[%clk 0:00:01.7]} 57. Qb5 {[%clk 0:00:10]} 57... Qc2+ {[%clk 0:00:02]} 58. Ka5
{[%clk 0:00:10.3]} 58... Qc7+ {[%clk 0:00:02.2]} 59. Kb4 {[%clk 0:00:10.9]}
59... Qd6+ {[%clk 0:00:02.4]} 60. Qc5 {[%clk 0:00:11.4]} 60... Qd2+ {[%clk
0:00:02.8]} 61. Kb5 {[%clk 0:00:11.9]} 61... Qd3+ {[%clk 0:00:02]} 62. Kb6
{[%clk 0:00:11.6]} 62... Qd8+ {[%clk 0:00:02.1]} 63. Ka7 {[%clk 0:00:11.9]}
63... Qd7 {[%clk 0:00:01.5]} 64. Ka8 {[%clk 0:00:12.5]} 64... Kh7 {[%clk
0:00:01.3]} 65. b8=Q {[%clk 0:00:12.9]} 65... Qa4 {[%clk 0:00:01.8]} 66. a7
{[%clk 0:00:10]} 66... g6 {[%clk 0:00:01.4]} 67. Qbc7 {[%clk 0:00:09.1]} 67...
Kg7 {[%clk 0:00:01.4]} 68. Q5e5+ {[%clk 0:00:08.7]} 68... Kf8 {[%clk 0:00:01.2]}
69. Qd8+ {[%clk 0:00:08.9]} 69... Qe8 {[%clk 0:00:00.6]} 70. Qh8# {[%clk
0:00:09.4]} 1-0

[Event "Late-Titled-Tuesday-Blitz-May-07-2024"]
[Site "Chess.com"]
[Date "2024.05.07"]
[Round "2"]
[White "RichardShtivelband"]
[Black "GasconJR"]
[Result "1-0"]
[WhiteElo "2399"]
[BlackElo "2570"]
[TimeControl "180+1"]
[EndTime "14:19:12 PDT"]
[Termination "RichardShtivelband won by resignation"]

1. d4 {[%clk 0:03:00.9]} 1... Nf6 {[%clk 0:02:57.8]} 2. c4 {[%clk 0:03:00.4]}
2... e6 {[%clk 0:02:57.8]} 3. Nf3 {[%clk 0:03:00]} 3... Bb4+ {[%clk 0:02:57.7]}
4. Bd2 {[%clk 0:02:58.6]} 4... Qe7 {[%clk 0:02:56.5]} 5. g3 {[%clk 0:02:57.7]}
5... Nc6 {[%clk 0:02:53.4]} 6. Bg2 {[%clk 0:02:57.3]} 6... Bxd2+ {[%clk
0:02:52.4]} 7. Nbxd2 {[%clk 0:02:55.5]} 7... d6 {[%clk 0:02:47.9]} 8. O-O {[%clk
0:02:54.6]} 8... e5 {[%clk 0:02:43.7]} 9. dxe5 {[%clk 0:02:53.1]} 9... dxe5
{[%clk 0:02:39.1]} 10. e3 {[%clk 0:02:42.4]} 10... Bg4 {[%clk 0:02:29.8]} 11. h3
{[%clk 0:02:37.9]} 11... Bh5 {[%clk 0:02:29.7]} 12. g4 {[%clk 0:02:30.7]} 12...
Bg6 {[%clk 0:02:29.3]} 13. Nh4 {[%clk 0:02:23]} 13... e4 {[%clk 0:01:58.8]} 14.
Nxg6 {[%clk 0:02:18]} 14... hxg6 {[%clk 0:01:57.9]} 15. Qb1 {[%clk 0:02:16.2]}
15... O-O-O {[%clk 0:00:48.8]} 16. Nxe4 {[%clk 0:02:15.8]} 16... Nxe4 {[%clk
0:00:48.6]} 17. Qxe4 {[%clk 0:02:16.4]} 17... Qxe4 {[%clk 0:00:48.3]} 18. Bxe4
{[%clk 0:02:16]} 18... Ne5 {[%clk 0:00:45]} 19. Kg2 {[%clk 0:02:06.3]} 19...
Nxc4 {[%clk 0:00:43.9]} 20. Rfc1 {[%clk 0:01:54.7]} 20... Nd6 {[%clk 0:00:41.5]}
21. Bf3 {[%clk 0:01:51.2]} 21... Rh4 {[%clk 0:00:40.7]} 22. b4 {[%clk
0:01:41.2]} 22... Rdh8 {[%clk 0:00:39.5]} 23. Rh1 {[%clk 0:01:40.7]} 23... f5
{[%clk 0:00:38.8]} 24. a4 {[%clk 0:01:37.1]} 24... b6 {[%clk 0:00:36.2]} 25. a5
{[%clk 0:01:35.6]} 25... Kd7 {[%clk 0:00:35.1]} 26. axb6 {[%clk 0:01:33.7]}
26... axb6 {[%clk 0:00:36]} 27. Rac1 {[%clk 0:01:26.5]} 27... Ne4 {[%clk
0:00:11.2]} 28. Bxe4 {[%clk 0:01:26.1]} 28... fxe4 {[%clk 0:00:12.1]} 29. Rc4
{[%clk 0:01:23.4]} 29... Re8 {[%clk 0:00:08.7]} 30. Rd1+ {[%clk 0:01:09.4]}
30... Kc8 {[%clk 0:00:09]} 31. Rdd4 {[%clk 0:01:06.8]} 31... Reh8 {[%clk
0:00:09.1]} 32. Rxe4 {[%clk 0:01:05.4]} 32... Rxh3 {[%clk 0:00:09.7]} 33. Re7
{[%clk 0:01:05.2]} 33... Rh2+ {[%clk 0:00:10.2]} 34. Kf1 {[%clk 0:00:55.1]}
34... Rf8 {[%clk 0:00:07]} 35. Rcxc7+ {[%clk 0:00:54.2]} 35... Kb8 {[%clk
0:00:07.6]} 36. Rf7 {[%clk 0:00:48.9]} 36... Rd8 {[%clk 0:00:07.2]} 37. Kg1
{[%clk 0:00:45.3]} 37... Rh4 {[%clk 0:00:05.6]} 38. f3 {[%clk 0:00:34.8]} 38...
Rd1+ {[%clk 0:00:05.4]} 39. Kg2 {[%clk 0:00:34.4]} 39... Rhh1 {[%clk 0:00:04]}
40. f4 {[%clk 0:00:23.9]} 40... Rdf1 {[%clk 0:00:01.1]} 41. Rc2 {[%clk 0:00:13]}
41... Rhg1+ {[%clk 0:00:01.2]} 42. Kh3 {[%clk 0:00:12.8]} 42... Rh1+ {[%clk
0:00:01.6]} 43. Rh2 {[%clk 0:00:11.9]} 43... Rf3+ {[%clk 0:00:00.8]} 44. Kg2
{[%clk 0:00:12.1]} 44... Rxh2+ {[%clk 0:00:01.7]} 45. Kxh2 {[%clk 0:00:12.4]}
45... Rxe3 {[%clk 0:00:02.1]} 46. Rxg7 {[%clk 0:00:12.4]} 46... Re4 {[%clk
0:00:03]} 47. Kg3 {[%clk 0:00:12.1]} 47... Rxb4 {[%clk 0:00:03.2]} 48. Rxg6
{[%clk 0:00:12.6]} 48... Rb3+ {[%clk 0:00:03.7]} 49. Kh4 {[%clk 0:00:12.7]}
49... b5 {[%clk 0:00:04.1]} 50. f5 {[%clk 0:00:12.7]} 50... Kc7 {[%clk 0:00:05]}
51. f6 {[%clk 0:00:13.2]} 51... Kd7 {[%clk 0:00:05.8]} 52. Rg7+ {[%clk
0:00:13.4]} 52... Ke6 {[%clk 0:00:06.2]} 53. g5 {[%clk 0:00:14.1]} 53... Kf5
{[%clk 0:00:06.4]} 54. Rb7 {[%clk 0:00:12.8]} 54... Rb1 {[%clk 0:00:06.2]} 55.
f7 {[%clk 0:00:12.7]} 55... Rh1+ {[%clk 0:00:05.1]} 56. Kg3 {[%clk 0:00:12.9]}
56... Rh8 {[%clk 0:00:05.4]} 57. Rxb5+ {[%clk 0:00:11.3]} 57... Kg6 {[%clk
0:00:06.1]} 58. Kg4 {[%clk 0:00:09.3]} 58... Kxf7 {[%clk 0:00:05.5]} 59. Kf5
{[%clk 0:00:09.9]} 59... Rh1 {[%clk 0:00:05.6]} 60. Rb7+ {[%clk 0:00:10]} 60...
Kf8 {[%clk 0:00:05.6]} 61. Kf6 {[%clk 0:00:10]} 61... Rf1+ {[%clk 0:00:06.1]}
62. Kg6 {[%clk 0:00:10.5]} 62... Rc1 {[%clk 0:00:05.5]} 63. Rb8+ {[%clk
0:00:10.3]} 63... Ke7 {[%clk 0:00:05.7]} 64. Kg7 {[%clk 0:00:10.8]} 64... Rg1
{[%clk 0:00:05.4]} 65. g6 {[%clk 0:00:10.7]} 65... Rg2 {[%clk 0:00:06.2]} 66.
Kh7 {[%clk 0:00:10.7]} 66... Rh2+ {[%clk 0:00:06.2]} 67. Kg8 {[%clk 0:00:11]}
67... Rg2 {[%clk 0:00:06.5]} 68. g7 {[%clk 0:00:10.9]} 68... Rg1 {[%clk
0:00:05.9]} 69. Rb7+ {[%clk 0:00:10.1]} 69... Ke8 {[%clk 0:00:06]} 70. Rb6
{[%clk 0:00:09.6]} 70... Re1 {[%clk 0:00:05.9]} 71. Rb4 {[%clk 0:00:09.3]} 71...
Re2 {[%clk 0:00:06.2]} 72. Rb5 {[%clk 0:00:09.6]} 72... Re1 {[%clk 0:00:06.5]}
73. Rf5 {[%clk 0:00:09.8]} 73... Re2 {[%clk 0:00:06.6]} 74. Kh7 {[%clk
0:00:09.7]} 74... Rh2+ {[%clk 0:00:04.6]} 75. Kg6 {[%clk 0:00:09.6]} 75... Rg2+
{[%clk 0:00:05.3]} 76. Kf6 {[%clk 0:00:10]} 76... Rg1 {[%clk 0:00:04.4]} 77.
Re5+ {[%clk 0:00:09.5]} 77... Kd7 {[%clk 0:00:04.6]} 78. Kf7 {[%clk 0:00:09.6]}
78... Rf1+ {[%clk 0:00:04.7]} 79. Kg6 {[%clk 0:00:09.7]} 79... Rg1+ {[%clk
0:00:04.5]} 80. Rg5 {[%clk 0:00:09.8]} 1-0

[Event "Late-Titled-Tuesday-Blitz-May-07-2024"]
[Site "Chess.com"]
[Date "2024.05.07"]
[Round "2"]
[White "martinmena"]
[Black "Chess_Star1234"]
[Result "0-1"]
[WhiteElo "2150"]
[BlackElo "2488"]
[TimeControl "180+1"]
[EndTime "14:19:14 PDT"]
[Termination "Chess_Star1234 won by checkmate"]

1. c4 {[%clk 0:03:00.9]} 1... e6 {[%clk 0:02:57.2]} 2. g3 {[%clk 0:02:59.7]}
2... d5 {[%clk 0:02:57.4]} 3. Bg2 {[%clk 0:03:00.2]} 3... Nf6 {[%clk 0:02:57.7]}
4. Nf3 {[%clk 0:03:00.9]} 4... Be7 {[%clk 0:02:57.9]} 5. O-O {[%clk 0:03:01.6]}
5... O-O {[%clk 0:02:58.5]} 6. d4 {[%clk 0:03:02.1]} 6... dxc4 {[%clk
0:02:58.5]} 7. Qc2 {[%clk 0:03:02.8]} 7... Bd7 {[%clk 0:02:57.9]} 8. Qxc4 {[%clk
0:03:01.2]} 8... Bc6 {[%clk 0:02:58.3]} 9. Nc3 {[%clk 0:02:55.7]} 9... Nbd7
{[%clk 0:02:57.7]} 10. b4 {[%clk 0:02:37.7]} 10... a6 {[%clk 0:02:39.9]} 11. Bg5
{[%clk 0:02:09.9]} 11... Nd5 {[%clk 0:01:15.8]} 12. Bxe7 {[%clk 0:01:49.9]}
12... Qxe7 {[%clk 0:01:16.7]} 13. Nxd5 {[%clk 0:01:40.4]} 13... Bxd5 {[%clk
0:01:17.6]} 14. Qc3 {[%clk 0:01:39.6]} 14... Nf6 {[%clk 0:01:11.1]} 15. Rfc1
{[%clk 0:01:32.9]} 15... c6 {[%clk 0:01:08]} 16. Qc5 {[%clk 0:01:27.5]} 16...
Rfe8 {[%clk 0:01:05]} 17. Ne5 {[%clk 0:01:24.1]} 17... Bxg2 {[%clk 0:00:56.8]}
18. Kxg2 {[%clk 0:01:22.4]} 18... Rad8 {[%clk 0:00:54.9]} 19. e3 {[%clk
0:01:17.3]} 19... Nd7 {[%clk 0:00:50.7]} 20. Qxe7 {[%clk 0:01:02.1]} 20... Rxe7
{[%clk 0:00:50.6]} 21. Nc4 {[%clk 0:00:54.6]} 21... e5 {[%clk 0:00:32.2]} 22.
Nd6 {[%clk 0:00:46.7]} 22... exd4 {[%clk 0:00:25.3]} 23. Nxb7 {[%clk 0:00:38.2]}
23... Rb8 {[%clk 0:00:25]} 24. Nd6 {[%clk 0:00:30]} 24... dxe3 {[%clk
0:00:21.3]} 25. Nf5 {[%clk 0:00:29.2]} 25... Re6 {[%clk 0:00:17.6]} 26. Nxe3
{[%clk 0:00:22.2]} 26... Rxb4 {[%clk 0:00:17.9]} 27. Rd1 {[%clk 0:00:20]} 27...
Rb7 {[%clk 0:00:17.9]} 28. Rac1 {[%clk 0:00:15.7]} 28... h6 {[%clk 0:00:14.2]}
29. Nc4 {[%clk 0:00:15.6]} 29... Nf6 {[%clk 0:00:07.7]} 30. Na5 {[%clk
0:00:14.7]} 30... Rb2 {[%clk 0:00:07.4]} 31. Rxc6 {[%clk 0:00:11.7]} 31... Rxc6
{[%clk 0:00:07.9]} 32. Nxc6 {[%clk 0:00:12.3]} 32... Rxa2 {[%clk 0:00:08.3]} 33.
Rd8+ {[%clk 0:00:12.2]} 33... Kh7 {[%clk 0:00:09]} 34. Ra8 {[%clk 0:00:11.9]}
34... Ne4 {[%clk 0:00:07.6]} 35. Kf3 {[%clk 0:00:09.7]} 35... Nxf2 {[%clk
0:00:08.1]} 36. Nb4 {[%clk 0:00:10]} 36... Rb2 {[%clk 0:00:06.4]} 37. Rxa6
{[%clk 0:00:08.5]} 37... Rxb4 {[%clk 0:00:03.5]} 38. Kxf2 {[%clk 0:00:09.1]}
38... Rb2+ {[%clk 0:00:04.2]} 39. Kg1 {[%clk 0:00:08.9]} 39... f6 {[%clk
0:00:04.9]} 40. Rc6 {[%clk 0:00:06.8]} 40... Kg6 {[%clk 0:00:05.4]} 41. Rc5
{[%clk 0:00:07.2]} 41... h5 {[%clk 0:00:05.9]} 42. h3 {[%clk 0:00:05.9]} 42...
Kh6 {[%clk 0:00:04.4]} 43. h4 {[%clk 0:00:05.5]} 43... g5 {[%clk 0:00:04.1]} 44.
hxg5+ {[%clk 0:00:04.6]} 44... fxg5 {[%clk 0:00:05]} 45. Kf1 {[%clk 0:00:03.9]}
45... Kg6 {[%clk 0:00:05.3]} 46. Kg1 {[%clk 0:00:03.3]} 46... Kf6 {[%clk
0:00:06]} 47. Ra5 {[%clk 0:00:03.7]} 47... Re2 {[%clk 0:00:05.6]} 48. Rb5 {[%clk
0:00:03.9]} 48... Re5 {[%clk 0:00:06.1]} 49. Rb6+ {[%clk 0:00:03.5]} 49... Kf5
{[%clk 0:00:06.7]} 50. Kf2 {[%clk 0:00:03.3]} 50... Re4 {[%clk 0:00:06.4]} 51.
Rb5+ {[%clk 0:00:03.5]} 51... Kg4 {[%clk 0:00:06.8]} 52. Rc5 {[%clk 0:00:03.1]}
52... Ra4 {[%clk 0:00:06.9]} 53. Rc2 {[%clk 0:00:03.2]} 53... h4 {[%clk
0:00:05.8]} 54. gxh4 {[%clk 0:00:03]} 54... Rf4+ {[%clk 0:00:06.7]} 55. Kg2
{[%clk 0:00:03.4]} 55... Kxh4 {[%clk 0:00:07]} 56. Rc1 {[%clk 0:00:03.6]} 56...
Kg4 {[%clk 0:00:07.6]} 57. Rc2 {[%clk 0:00:03.7]} 57... Ra4 {[%clk 0:00:08]} 58.
Rb2 {[%clk 0:00:04.1]} 58... Ra3 {[%clk 0:00:08.4]} 59. Rd2 {[%clk 0:00:04.6]}
59... Ra4 {[%clk 0:00:08.7]} 60. Rc2 {[%clk 0:00:04.8]} 60... Kh4 {[%clk
0:00:08.7]} 61. Rd2 {[%clk 0:00:05]} 61... Kg4 {[%clk 0:00:08.7]} 62. Rc2 {[%clk
0:00:04.9]} 62... Kf4 {[%clk 0:00:09.5]} 63. Rd2 {[%clk 0:00:05.3]} 63... Ke3
{[%clk 0:00:09.9]} 64. Rc2 {[%clk 0:00:05.8]} 64... Rd4 {[%clk 0:00:10]} 65. Ra2
{[%clk 0:00:05.2]} 65... Kf4 {[%clk 0:00:10.1]} 66. Rb2 {[%clk 0:00:05.2]} 66...
g4 {[%clk 0:00:10.2]} 67. Rc2 {[%clk 0:00:05.7]} 67... Re4 {[%clk 0:00:10.6]}
68. Rb2 {[%clk 0:00:06.3]} 68... Rc4 {[%clk 0:00:09.5]} 69. Rc2 {[%clk
0:00:06.9]} 69... Rxc2+ {[%clk 0:00:09.8]} 70. Kf1 {[%clk 0:00:06.5]} 70... Kf3
{[%clk 0:00:10.5]} 71. Ke1 {[%clk 0:00:07.2]} 71... Ra2 {[%clk 0:00:10.9]} 72.
Kd1 {[%clk 0:00:08]} 72... g3 {[%clk 0:00:11.5]} 73. Kc1 {[%clk 0:00:08.5]}
73... Rf2 {[%clk 0:00:12.4]} 74. Kd1 {[%clk 0:00:08.2]} 74... g2 {[%clk
0:00:13.3]} 75. Ke1 {[%clk 0:00:08.9]} 75... g1=R# {[%clk 0:00:14.2]} 0-1